Cogmind - Beta 16 @@@ ROGUE MODE // 2025.10.29 @ 22:18:19 Player: Cereal Killer Result: Destroyed by H-61 Shepherd with Heavy Assault Cannon Performance ------------- Evolutions (2) 1000 Regions Visited (7) 1400 Robots Destroyed (93) 465 Value Destroyed (4047) 4047 Prototype IDs (36) 720 Alien Tech Used (0) 0 Bonus (1898) 1898 TOTAL SCORE: 9530 Bonus ------- High Alert Combat Kills 941 Follower Combat Kills 457 Entered Garrisons 200 Aligned with FarCom 300 Cogmind --------- Core Integrity 0/550 Matter 216/300 Energy 50/280 System Corruption 5% Temperature Hot (275) Movement Rolling (105) Ox1 Location -8/Materials Parts ------- > --- POWER (1) -------- Cooled Ion Engine > --- PROPULSION (3) --- Compact Wheel > --- UTILITY (5) ------ Improved Heat Sink Large Storage Unit Improved Weapon Shielding Hacking Suite > --- WEAPON (2) ------- (None) > --- INVENTORY (15) --- Combat Airjet Cesium-ion Thruster Cesium-ion Thruster Hacking Suite System Shield Firepult Gauss Rifle Gauss Rifle Precision Assault Rifle Missile Launcher Scythe Peak State ------------ > --- POWER ------------ Light Deuterium Engine > --- PROPULSION ------- Wheel Wheel Wheel > --- UTILITY ---------- Large Storage Unit Machine Analyzer Layered Light Armor Plating Layered Light Armor Plating Hacking Suite > --- WEAPON ----------- Firepult > --- INVENTORY -------- Cooled Ion Engine Compact Wheel Combat Airjet Cesium-ion Thruster Cesium-ion Thruster Improved Heat Sink Layered Light Armor Plating Hacking Suite System Shield Precision Assault Rifle Precision Assault Rifle Missile Launcher Scythe [Rating: 45] Favorites ----------- Power Light Deuterium Engine Engine Light Deuterium Engine Power Core Light Nuclear Core Propulsion Wheel Wheel Wheel Hover Unit Aerolev Unit Flight Unit Improved VTOL Module Utility Large Storage Unit Device Structural Scanner Storage Large Storage Unit Processor Machine Analyzer Hackware Hacking Suite Protection Layered Light Armor Plating Weapon Heavy Assault Rifle Energy Gun Small Laser Energy Cannon Advanced Beam Cannon Ballistic Gun Heavy Assault Rifle Launcher Missile Launcher Special Weapon Welding Torch Build | -11 -10 -10 -10 -9 -8 -8 -8 ------- Run | Yrd Mat Min Exi Min Mat Gar Mat Slots Evolved 4 | . . . . . 4 . . Power . | . . . . . . . . Propulsion 1 | . . . . . 1 . . Utility 3 | . . . . . 3 . . Weapon . | . . . . . . . . Parts Attached 64 | 6 10 6 . 1 15 3 23 Power 9 | 1 1 3 . . 1 . 3 Engine 8 | 1 1 2 . . 1 . 3 Core 1 | . . 1 . . . . . Reactor . | . . . . . . . . Propulsion 18 | 2 1 3 . . 2 . 10 Treads . | . . . . . . . . Leg . | . . . . . . . . Wheel 16 | 2 1 3 . . 2 . 8 Hover 1 | . . . . . . . 1 Flight 1 | . . . . . . . 1 Utility 17 | 1 4 . . . 6 2 4 Device 3 | . 1 . . . 1 . 1 Storage 2 | 1 1 . . . . . . Processor 1 | . . . . . 1 . . Hackware 1 | . . . . . 1 . . Protection 10 | . 2 . . . 3 2 3 Artifact . | . . . . . . . . Weapon 20 | 2 4 . . 1 6 1 6 Energy Gun 1 | 1 . . . . . . . Energy Cannon 2 | . . . . . 2 . . Ballistic Gun 15 | 1 3 . . 1 3 1 6 Ballistic Cannon . | . . . . . . . . Launcher 1 | . . . . . 1 . . Special Weapon 1 | . 1 . . . . . . Impact Weapon . | . . . . . . . . Slashing Weapon . | . . . . . . . . Piercing Weapon . | . . . . . . . . Special Melee Weapon . | . . . . . . . . Unidentified Prototypes 4 | . . . . . 2 . 2 Parts Lost 17 | . 1 4 . . 2 . 10 Power 4 | . . 2 . . . . 2 Propulsion 10 | . 1 2 . . 1 . 6 Utility 2 | . . . . . . . 2 Weapon 1 | . . . . . 1 . . Highest Loss Streak 6 | . 1 2 . . 1 . 6 To Critical Strikes . | . . . . . . . . Average Backups 12 | 3 9 14 13 11 11 14 13 Power . | 1 1 1 . . . . 1 Propulsion 2 | 1 1 2 2 2 2 4 3 Utility 5 | . 3 8 8 8 6 4 3 Weapon 3 | . 2 2 3 1 2 5 5 Tool/Special . | . . . . . . . . Unused Backups 25 | . 8 2 2 . 4 1 8 Power 2 | . 1 . . . . . 1 Propulsion 7 | . 4 . . . . . 3 Utility 11 | . . 2 1 . 4 1 3 Weapon 5 | . 3 . 1 . . . 1 Tool/Special . | . . . . . . . . Average Slot Usage (%) 97 | . 99 97 71 98 98 100 96 Engine 10 | . 14 10 14 14 8 9 8 Wheel 27 | . 28 27 28 28 26 27 26 Storage 10 | . 14 14 14 14 9 9 9 Processor 4 | . . . . . 8 9 6 Hackware 5 | . . . . . 7 9 9 Protection 16 | . 12 14 14 14 17 18 19 Ballistic Gun 19 | . 27 27 . 26 13 18 15 Peak Build Rating 45 | 6 12 15 15 18 43 37 45 Average Rating 24 | 3 10 12 14 17 27 36 34 On Entrance 16 | . 6 12 13 15 18 32 37 Avg Prop Armor Cover (%) . | . . . . . . . . Naked Turns . | . . . . . . . . Heaviest Build 61 | 13 34 36 34 40 59 41 61 Greatest Support 36 | 20 20 20 20 20 36 36 36 Greatest Overweight (x) 3 | . 1 3 1 1 2 1 2 Average Overweight (x) . | . . 1 1 1 1 1 . Largest Inventory Capacity 15 | 8 15 15 15 15 15 15 15 Average Capacity 14 | 6 10 15 15 15 15 15 15 Most Carried 15 | 7 15 15 15 15 15 15 15 Average Carried 13 | 3 9 14 14 13 13 14 14 Final Capacity 15 | 8 15 15 15 15 15 15 15 Final Carried 15 | 6 15 15 15 15 15 15 12 Class Distribution -------------------- 55% | Mutant 25% | Commander-Mutant 17% | Scavenger-Mutant Dominant Class ---------------- Mutant | -10/Materials Mutant | -10/Mines Mutant | -10/Exiles Mutant | -9/Mines Scavenger-Mutant | -8/Materials Commander-Mutant | -8/Garrison Commander-Mutant | -8/Materials Resources | -11 -10 -10 -10 -9 -8 -8 -8 ----------- Run | Yrd Mat Min Exi Min Mat Gar Mat Matter Collected 2772 | 218 565 179 64 52 506 145 1043 Remotely . | . . . . . . . . Salvage Created 3945 | . 794 209 . . 609 11 2322 Parts 183 | . 49 3 . . 30 . 101 Haulers Intercepted 6 | . 1 . . . 1 . 4 Recyclers Shooed 2 | . 1 1 . . . . . Parts Field Recycled . | . . . . . . . . Retrieved Matter . | . . . . . . . . Parts Self-Destructed . | . . . . . . . . Prevented . | . . . . . . . . Parts Restored . | . . . . . . . . Kills | -11 -10 -10 -10 -9 -8 -8 -8 ------- Run | Yrd Mat Min Exi Min Mat Gar Mat Combat Hostiles Destroyed 66 | . 13 9 . . 13 . 31 Guns 43 | . 13 9 . . 8 . 13 Cannons 6 | . . . . . 2 . 4 AOE 11 | . . . . . 3 . 8 Classes Destroyed 17 | . 8 1 . . 3 . 5 Worker 10 | . 4 . . . 1 . 5 Builder 6 | . 2 . . . . . 4 Tunneler 3 | . 1 . . . . . 2 Hauler 6 | . 1 . . . 1 . 4 Recycler 3 | . 1 . . . . . 2 Mechanic 2 | . . . . . . . 2 Operator 1 | . . . . . 1 . . Watcher 3 | . 2 . . . . . 1 Swarmer 6 | . 3 . . . 2 . 1 Grunt 33 | . 10 2 . . 6 . 15 Brawler 1 | . . . . . . . 1 Duelist 2 | . . . . . . . 2 Sentry 9 | . . . . . 3 . 6 Demolisher 1 | . . . . . . . 1 Specialist 4 | . . . . . . . 4 Hunter 3 | . . . . . 2 . 1 Assembled 7 | . . 7 . . . . . Best Kill Streak 14 | . 3 4 . . 3 . 14 Combat Bots Only 11 | . 3 4 . . 3 . 11 Max Kills in Single Turn 4 | . 1 2 . . 2 . 4 Gunslinging 1 | . . 1 . . . . . Exploded 2 | . . . . . 2 . 2 Melee . | . . . . . . . . Uniques/NPCs Destroyed . | . . . . . . . . Combat | -11 -10 -10 -10 -9 -8 -8 -8 -------- Run | Yrd Mat Min Exi Min Mat Gar Mat Hostile Shots Fired 281 | . 50 28 . . 68 . 135 Missed 91 | . 19 8 . . 22 . 42 Hits 190 | . 31 20 . . 46 . 93 Melee 6 | . . 6 . . . . . Projectile 184 | . 31 14 . . 46 . 93 AOE 10 | . . . . . . . 10 Critical Strikes 9 | . 2 . . . 3 . 4 Actively Blocked 1 | . . . . . . . 1 Damage Taken 3706 | . 374 359 . . 728 . 2245 Core 613 | . 22 29 . . 82 . 480 Absorbed by Shields . | . . . . . . . . Redirected to Shielding 67 | . . . . . . . 67 Regen/Repaired (Parts) 147 | . . . . . 15 . 132 Core Remaining (%) 89 | 100 . . . 79 . . . Volleys Fired 248 | . 65 27 . . 59 18 79 Largest 2 | . 2 2 . . 2 2 2 Hottest 250 | . 46 46 . . 91 56 250 Shots Fired 480 | . 130 53 . 1 113 36 147 Gun 447 | . 130 53 . 1 90 36 137 Cannon 23 | . . . . . 15 . 8 Launcher 10 | . . . . . 8 . 2 Special . | . . . . . . . . Kinetic 447 | . 130 53 . 1 90 36 137 Thermal 23 | . . . . . 15 . 8 Explosive 10 | . . . . . 8 . 2 Electromagnetic . | . . . . . . . . Robot Hit Streak 29 | . 11 4 . 2 29 3 10 Robot Miss Streak 11 | . 11 5 . . 3 1 3 Penetration Max 1 | . . . . . 1 . 1 Secondary Targets 6 | . 2 2 . . . . 2 Max Gunslinging Chain 1 | . 1 1 . . . . 1 Shots Hit Robots 277 | . 72 24 . 1 71 3 106 Core Hits 159 | . 30 15 . . 33 2 79 Critical Kills . | . . . . . . . . Critical Parts Destroyed 2 | . . . . . . . 2 Critical Strikes 3 | . . . . . 1 . 2 Destroy 3 | . . . . . 1 . 2 Melee Attacks . | . . . . . . . . Impact . | . . . . . . . . Slashing . | . . . . . . . . Piercing . | . . . . . . . . Sneak Attacks . | . . . . . . . . Combat Hostiles . | . . . . . . . . Follow-up Attacks . | . . . . . . . . Damage Inflicted 7313 | . 1131 382 . . 1752 56 3992 Guns 4666 | . 1131 382 . . 990 56 2107 Cannons 498 | . . . . . 184 . 314 Explosions 2149 | . . . . . 578 . 1571 Melee . | . . . . . . . . Ramming . | . . . . . . . . Kinetic 4666 | . 1131 382 . . 990 56 2107 Thermal 1690 | . . . . . 184 . 1506 Explosive 957 | . . . . . 578 . 379 Electromagnetic . | . . . . . . . . Impact . | . . . . . . . . Slashing . | . . . . . . . . Piercing . | . . . . . . . . Highest Corruption 9 | . . 9 9 9 . . 5 Average Corruption 5 | . . 6 9 9 . . 4 Corruption Purged . | . . . . . . . . Corruption Blocked . | . . . . . . . . Effects 46 | . . 5 7 10 . . 24 Message Errors 11 | . . 1 1 3 . . 6 Matter Fused 13 | . . . 2 4 . . 7 Heat Flow Errors 8 | . . 2 2 1 . . 3 Energy Discharges 4 | . . 1 1 . . . 2 Parts Fused 1 | . . . . . . . 1 Data Loss (minor) 3 | . . . . 1 . . 2 Misfires 2 | . . . . 1 . . 1 Alerts 2 | . . . 1 . . . 1 Weapon Failures 2 | . . 1 . . . . 1 Overload Shots . | . . . . . . . . Overflow Damage 19 | . . . . . 15 . 4 Projectiles . | . . . . . . . . Explosions 19 | . . . . . 15 . 4 Melee . | . . . . . . . . Knockbacks . | . . . . . . . . Impact . | . . . . . . . . Kinetic . | . . . . . . . . Secondary . | . . . . . . . . Self-Inflicted Damage 80 | . . . . . . . 80 Shots 5 | . . . . . . . 5 Rammed . | . . . . . . . . Targets Rammed . | . . . . . . . . Kicked . | . . . . . . . . Crushed . | . . . . . . . . Highest Temperature 401 | . 120 253 92 181 250 18 401 Average Temperature 76 | . 46 47 48 116 77 6 98 Received Heat Transfer 1039 | . 234 49 . . 324 . 432 Effects 4 | . . . . . . . 4 Energy Bleed 2 | . . . . . . . 2 Interference 2 | . . . . . . . 2 Siege Activations . | . . . . . . . . Martial Activations . | . . . . . . . . Shielding Activations . | . . . . . . . . Robots Disrupted . | . . . . . . . . Combat Hostiles . | . . . . . . . . Robots Corrupted . | . . . . . . . . Combat Hostiles . | . . . . . . . . Parts Fried . | . . . . . . . . Impact Corruptions . | . . . . . . . . Robots Melted 7 | . . . . . . . 7 Combat Hostiles 6 | . . . . . . . 6 Parts Melted 38 | . . . . . 1 . 37 Heat Transferred 8158 | . . . . . 333 . 7825 Parts Sabotaged . | . . . . . . . . Parts Stolen . | . . . . . . . . Parts Stripped . | . . . . . . . . Power Chain Reactions . | . . . . . . . . Alert | -11 -10 -10 -10 -9 -8 -8 -8 ------- Run | Yrd Mat Min Exi Min Mat Gar Mat Maximum Alert Level 5 | . 1 . . . . 3 5 Low Security (%) 57 | 100 93 100 . 100 100 15 . Level 1 11 | . 6 . . . . 51 3 Level 2 7 | . . . . . . 14 20 Level 3 13 | . . . . . . 19 38 Level 4 10 | . . . . . . . 37 Level 5 . | . . . . . . . . High Security . | . . . . . . . . Max Security . | . . . . . . . . Peak Influence 1600 | . 220 63 . . 124 725 1600 Initial 352 | . . 63 . . . 70 352 Average 353 | . 111 12 . . 58 413 917 Influence Increases 3715 | . 536 50 . . 462 655 2012 Destroy 0b10 Robot/C 1540 | . 260 40 . . 260 . 980 Destroy 0b10 Robot/NC 185 | . 55 . . . 15 . 115 Destroy Leader 372 | . 66 10 . . 82 . 214 Allied During Kill 370 | . . . . . . . 370 Successful Hack 121 | . 48 . . . 19 . 54 Select Force Hacks 60 | . 60 . . . . . . Disable Machine 180 | . 15 . . . . 15 150 Anti-Garrison Action 600 | . . . . . . 600 . Destroy Structure 137 | . 2 . . . 41 40 54 Lose Combat Pursuer 150 | . 30 . . . 45 . 75 Influence Decreases 2125 | . 374 212 . . 354 38 1147 Entered New Map 510 | . . 99 . . . 38 373 Time Decay 1295 | . 364 103 . . 334 . 494 Lost Part 140 | . 10 10 . . 20 . 100 Lost Ally 180 | . . . . . . . 180 Squads Dispatched 15 | . 3 . . . 1 . 11 Investigation 6 | . 3 . . . 1 . 2 Extermination . | . . . . . . . . Reinforcement 6 | . . . . . . . 6 Assault 3 | . . . . . . . 3 Garrison . | . . . . . . . . Intercept . | . . . . . . . . Searches Triggered . | . . . . . . . . Construction Impeded 1 | . . . . . . . 1 Haulers Reinforced . | . . . . . . . . Active Scanning Responses . | . . . . . . . . Cargo Convoy Interrupts . | . . . . . . . . Stealth | -11 -10 -10 -10 -9 -8 -8 -8 --------- Run | Yrd Mat Min Exi Min Mat Gar Mat Distress Signals 11 | . 3 . . . 2 . 6 Communications Jammed . | . . . . . . . . Distress Signals . | . . . . . . . . Times Spotted 118 | . 21 10 . . 25 . 62 Peak Tracking Total 12 | . 4 2 . . 5 . 12 Tactical Retreats 9 | . 3 1 . . 2 . 3 ECM-based Alert Blocks 4 | . 4 . . . . . . Traps | -11 -10 -10 -10 -9 -8 -8 -8 ------- Run | Yrd Mat Min Exi Min Mat Gar Mat Traps Triggered 2 | . . . . . 1 . 1 Indirectly . | . . . . . . . . Trap Hack Attempts . | . . . . . . . . Triggered . | . . . . . . . . Disarmed . | . . . . . . . . Reprogrammed . | . . . . . . . . Reused . | . . . . . . . . Traps Extracted . | . . . . . . . . Installed . | . . . . . . . . Triggered . | . . . . . . . . Most Traps Carried 2 | . . . . 2 2 . . Machines | -11 -10 -10 -10 -9 -8 -8 -8 ---------- Run | Yrd Mat Min Exi Min Mat Gar Mat Machines Disabled 19 | . 2 . . . . 7 10 Max in Single Turn 2 | . 1 . . . . 1 2 Garrison Relay 6 | . . . . . . 6 . Machines Repaired . | . . . . . . . . Machines Dismantled . | . . . . . . . . Machines Sabotaged . | . . . . . . . . Overloaded Fab Kills . | . . . . . . . . Hacking | -11 -10 -10 -10 -9 -8 -8 -8 --------- Run | Yrd Mat Min Exi Min Mat Gar Mat Machines Accessed 38 | . 9 . 2 . 11 4 12 Terminals 28 | . 7 . . . 8 4 9 Fabricators . | . . . . . . . . Repair Stations 2 | . . . . . 1 . 1 Recycling Units 2 | . 2 . . . . . . Scanalyzers 3 | . . . . . 1 . 2 Garrison Access 1 | . . . . . 1 . . Total Hacks 111 | . 29 . 2 . 39 9 32 Successful 61 | . 15 . 2 . 24 1 19 Failed 49 | . 14 . . . 14 8 13 Catastrophic 11 | . 2 . . . 1 3 5 Database Lockouts 1 | . . . . . 1 . . Manual 42 | . 19 . 1 . 11 . 11 Terminals 82 | . 27 . . . 24 9 22 Fabricators . | . . . . . . . . Repair Stations 4 | . . . . . 2 . 2 Recycling Units 2 | . 2 . . . . . . Scanalyzers 19 | . . . . . 11 . 8 Garrison Access 2 | . . . . . 2 . . Terminal Hacks 29 | . 8 . 2 . 8 1 10 Record 1 | . . . 1 . . . . Robot Analysis 5 | . 2 . . . . . 3 Prototype ID Bank 7 | . 3 . . . 2 . 2 Branch Access Points 2 | . 1 . . . 1 . . Emergency Access Points 3 | . . . . . 2 1 . Alert Level 2 | . . . . . 1 . 1 Locate Traps 1 | . . . . . . . 1 Registered Components 2 | . 1 . . . 1 . . Registered Prototypes 1 | . . . . . 1 . . Zone Layout 4 | . 1 . . . . . 3 Proto ID Catalog 1 | . . . 1 . . . . Fabricator Hacks . | . . . . . . . . Repair Station Hacks 4 | . . . . . 2 . 2 Scan Component 2 | . . . . . 1 . 1 Repair 2 | . . . . . 1 . 1 Recycling Unit Hacks . | . . . . . . . . Scanalyzer 13 | . . . . . 9 . 4 Insert Component 3 | . . . . . 3 . . Analyze 3 | . . . . . 3 . . Retrieve Study 7 | . . . . . 3 . 4 Garrison Access Hacks 1 | . . . . . 1 . . Unlock Access 1 | . . . . . 1 . . Unauthorized Hacks 14 | . 7 . . . 4 . 3 Terminals 12 | . 5 . . . 4 . 3 Track 2 | . 1 . . . . . 1 Botnet 6 | . 2 . . . 3 . 1 Disrupt 2 | . 2 . . . . . . Operators 2 | . . . . . 1 . 1 Fabricators . | . . . . . . . . Repair Stations . | . . . . . . . . Recycling Units 2 | . 2 . . . . . . Tunnel 2 | . 2 . . . . . . Scanalyzers . | . . . . . . . . Garrison Access . | . . . . . . . . Data Cores Recovered 1 | . . . . . 1 . . Used . | . . . . . . . . Hacking Detections 30 | . 6 . . . 10 3 11 Full Trace Events 6 | . 3 . . . . 2 1 Feedback Events . | . . . . . . . . Feedback Blocked . | . . . . . . . . Robot Schematics Acquired . | . . . . . . . . Robots Built . | . . . . . . . . Authchips . | . . . . . . . . Time . | . . . . . . . . Total Robot Build Rating . | . . . . . . . . Part Schematics Acquired 2 | . . . . . 2 . . Parts Built . | . . . . . . . . Authchips . | . . . . . . . . Time . | . . . . . . . . Total Part Build Rating . | . . . . . . . . Part Studies Acquired 5 | . . . . . 2 . 3 Parts Repaired 2 | . . . . . 1 . 1 Time 140 | . . . . . 70 . 70 Parts Recycled . | . . . . . . . . Recycled Matter . | . . . . . . . . Retrieved Matter . | . . . . . . . . Retrieved Components . | . . . . . . . . Parts Scanalyzed 2 | . . . . . 2 . . Part Schematics Acquired 2 | . . . . . 2 . . Parts Damaged 1 | . . . . . 1 . . Bothacking | -11 -10 -10 -10 -9 -8 -8 -8 ------------ Run | Yrd Mat Min Exi Min Mat Gar Mat Used RIF Installer . | . . . . . . . . Robots Hacked . | . . . . . . . . Non-combat . | . . . . . . . . Combat . | . . . . . . . . Robot Hacks Applied . | . . . . . . . . Relay Couplers Released 23 | . . . . . . 23 . Machine Destruction 23 | . . . . . . 23 . Fabnet Peak Effective % . | . . . . . . . . Robots Rewired 10 | . . . . . . 10 . Allies Hacked . | . . . . . . . . Hacks Repelled . | . . . . . . . . Allies | -11 -10 -10 -10 -9 -8 -8 -8 -------- Run | Yrd Mat Min Exi Min Mat Gar Mat Total Allies 10 | . . . . . . 10 . Largest Group 10 | . . . . . . 10 10 Highest-Rated Group 168 | . . . . . . 168 168 Highest-Rated Ally 21 | . . . . . . 21 21 Initial Warlord ECA Mod 10 | . . . . . . . 10 Total Orders . | . . . . . . . . Ally Attacks 124 | . . . . . . . 124 Total Damage 2208 | . . . . . . . 2208 Kills 22 | . . . . . . . 22 Allies Corrupted . | . . . . . . . . Allies Melted . | . . . . . . . . Intel | -11 -10 -10 -10 -9 -8 -8 -8 ------- Run | Yrd Mat Min Exi Min Mat Gar Mat Active Infowar (turns) 2631 | . 44 . . . 902 852 833 Structural 137 | . . . . . 137 . . Machine Analysis 2500 | . . . . . 815 852 833 ECM 44 | . 44 . . . . . . Robot Analysis Total 5 | . 2 . . . . . 3 Derelict Logs Recovered 1 | . . 1 . . . . . Drone Launches . | . . . . . . . . Drone Recoveries . | . . . . . . . . Exploration | -11 -10 -10 -10 -9 -8 -8 -8 ------------- Run | Yrd Mat Min Exi Min Mat Gar Mat Turns Passed 5078 | 48 979 504 217 270 903 852 1305 Spaces Moved 4267 | 40 822 420 226 278 686 746 1049 Core 5 | 5 . . . . . . . Treads . | . . . . . . . . Legs . | . . . . . . . . Wheels 4262 | 35 822 420 226 278 686 746 1049 Hover . | . . . . . . . . Flight . | . . . . . . . . Fastest Speed 50 | 50 80 95 95 95 80 95 76 Average Speed 91 | 76 87 95 95 95 92 95 88 Slowest Speed 125 | 80 95 125 95 95 100 95 105 Overloaded Moves . | . . . . . . . . Propulsion Burnouts . | . . . . . . . . Robots Hopped . | . . . . . . . . Potential Cave-ins . | . . . . . . . . Cave-ins Triggered . | . . . . . . . . Exploration Rate (%) 63 | 2 88 79 60 55 46 97 80 Regions Visited 7 Branch Regions 3 Pre-discovered Areas 5 | . 2 1 1 1 . . . Known Exits Taken 2 | . 1 . . . 1 . . Unknown Exits Taken 4 | 1 . 1 1 1 . . . Scrap Searched 4 | . . 2 . 2 . . . Spaces Dug 31 | . . . . . 24 . 7 Terrain Destroyed 124 | . . . . . 64 . 60 Melee . | . . . . . . . . Projectile 4 | . . . . . . . 4 AOE 120 | . . . . . 64 . 56 Terrain Rammed . | . . . . . . . . Walls Destroyed . | . . . . . . . . Machines Disabled . | . . . . . . . . Actions | -11 -10 -10 -10 -9 -8 -8 -8 --------- Run | Yrd Mat Min Exi Min Mat Gar Mat Total 4993 | 57 953 475 230 283 842 856 1297 Wait 169 | . 23 7 . 2 40 21 76 Move 4260 | 39 821 419 225 277 685 745 1049 Hop . | . . . . . . . . Pick Up 78 | 12 20 8 2 2 19 4 11 Fast Attach 13 | . 1 . . . 2 . 10 Attach 47 | 6 2 4 . 2 11 . 22 Detach 21 | . . 1 . . 3 . 17 Swap 33 | . 8 2 . . 9 4 10 Drop 66 | . 13 7 3 . 14 6 23 Fire 248 | . 65 27 . . 59 18 79 Melee . | . . . . . . . . Ram . | . . . . . . . . Kick . | . . . . . . . . Crush . | . . . . . . . . Escape Stasis . | . . . . . . . . Rewire 58 | . . . . . . 58 . Trap . | . . . . . . . . Miscellaneous . | . . . . . . . . Route ------- -11/Scrapyard -10/Materials (discovered 4 exits: [*Mat x2] / *Min / [*Sub]) -10/Mines (discovered 2 exits: [*Mat] / *Exi) -10/Exiles (discovered 2 exits: [*Min x2]) -9/Mines -8/Materials -8/Garrison (discovered 3 exits: *Mat x3) -8/Materials (discovered 3 exits: [*Fac x3]) History --------- Turn | Location | Event 14 | -11/Scrapyard | Discovered new exit (range 15) 49 | -11/Scrapyard | Entered Materials 171 | -10/Materials | Discovered new exit (range 8) 315 | -10/Materials | Build established: Mutant 349 | -10/Materials | Identified exit to Mines 513 | -10/Materials | Discovered new exit (range 15) 580 | -10/Materials | Discovered new exit (range 9) 876 | -10/Materials | Discovered new exit (range 10) 1028 | -10/Materials | Entered Mines 1067 | -10/Mines | Met a Derelict bent on vengeance 1109 | -10/Mines | Found a Scrap Suit stashed away for nefarious purposes 1114 | -10/Mines | Found Scrap Suit 1119 | -10/Mines | Assembled infested the area 1201 | -10/Mines | Learned location of Mines (-9) 1244 | -10/Mines | Deemed a non-threat by the Exiles lab entrance 1244 | -10/Mines | Discovered new exit (range 5) 1280 | -10/Mines | Discovered new exit (range 11) 1532 | -10/Mines | Entered Exiles 1547 | -10/Exiles | Discovered new exit (range 15) 1556 | -10/Exiles | Met 8R-AWN 1571 | -10/Exiles | Met EX-HEX 1597 | -10/Exiles | Met EX-BIN 1609 | -10/Exiles | Aligned with FarCom system 1609 | -10/Exiles | Given EX-Vault access code 1631 | -10/Exiles | Opened EX-Vault 1638 | -10/Exiles | Found Firepult 1662 | -10/Exiles | Warned to stay clear of 0b10 Research branches 1689 | -10/Exiles | Met EX-DEC 1693 | -10/Exiles | Learned location of Zion (-6) 1741 | -10/Exiles | Discovered new exit (range 10) 1749 | -10/Exiles | Left Exiles lab with Firepult 1749 | -10/Exiles | Entered Mines 1819 | -9/Mines | Found a hidden stash of uninstalled traps 2004 | -9/Mines | Discovered new exit (range 12) 2019 | -9/Mines | Entered Materials 2019 | -8/Materials | Evolved 4 slots: Propulsion x1, Utility x3 2043 | -8/Materials | Central database locked down 2283 | -8/Materials | Repaired Broken Cmb. Airjet 2430 | -8/Materials | Build established: Scavenger-Mutant 2921 | -8/Materials | Identified exit to Garrison 2922 | -8/Materials | Entered Garrison 2922 | -8/Garrison | Discovered recently destroyed garrison 3050 | -8/Garrison | Garrison Relay disabled 3153 | -8/Garrison | Garrison Relay disabled 3223 | -8/Garrison | Build established: Mutant 3224 | -8/Garrison | Discovered new exit (range 12) 3241 | -8/Garrison | Garrison Relay disabled 3445 | -8/Garrison | Discovered new exit (range 12) 3512 | -8/Garrison | Garrison Relay disabled 3530 | -8/Garrison | Garrison Relay disabled 3584 | -8/Garrison | Build established: Commander-Mutant 3612 | -8/Garrison | Garrison Relay disabled 3719 | -8/Garrison | Discovered new exit (range 15) 3774 | -8/Garrison | Entered Materials 3774 | -8/Materials | Accompanied by 10 allies 4141 | -8/Materials | Discovered new exit (range 16) 4216 | -8/Materials | Discovered new exit (range 16) 4574 | -8/Materials | First assault squad dispatched 4633 | -8/Materials | Destroyed 7 combat bots 4636 | -8/Materials | Lost 7 allies 4809 | -8/Materials | Repaired Prc. Assault Rifle 4881 | -8/Materials | Build established: Mutant 5019 | -8/Materials | Core integrity fell below 50% 5054 | -8/Materials | Destroyed 11 combat bots 5067 | -8/Materials | Core integrity fell below 20% 5074 | -8/Materials | Discovered new exit (range 11) 5079 | -8/Materials | Destroyed by H-61 Shepherd with Heavy Assault Cannon Last Messages --------------- 05074_ Melted Aluminum Leg. 05074_ Melted Lgt. Nuclear Core. 05074_ G-47 Trooper critical meltdown. 05074_ Imp. Heat Sink melted. 05074_ L-31 Rogue critical meltdown. 05074_ Katana melted. 05074_ Imp. Aluminum Leg melted. 05074_ Core Shielding melted. 05075_ G-47 Trooper heat damages Imp. Heat Sink, Particle Gun, Aluminum Leg, Aluminum Leg. 05075_ G-47 Trooper overheating. 05075_ Wheel+ destroyed. 05076_ G-47 Trooper overheating. 05077_ H-61 Shepherd heat spikes uncontrollably. 05077_ G-47 Trooper heat short circuits Aluminum Leg. 05077_ G-47 Trooper overheating. 05078_ G-47 Trooper heat damages Broken Aluminum Leg, Imp. Heat Sink. 05078_ G-47 Trooper overheating. Map ----- +----------------------------------------------------+ | ?????# """"" # + #????????# #???? | | ?????# """"" ##### [ *########## #???? | | ?????# """"" #???# ==/% #???? | | ?????# #???#= !########## #???? | | ?????##########???#] #????????# #???? | | ??????????????????# #????????# #???? | | ??????????????????# #????????# ####? | | ??????????????????# #????????# !## | | ??????????????????##########????????# !# | | ""??????????????????????######??????# !# | | """??????????????????#### ##?????# !# | | """??????????????###?# ##????# !# | | """????????####### #?# ## #????#[! !## | | ""?????????# [=%=### ############%[= ####? | | ???????????# [*!!*== * [[! #??## | | ??????????## *%%%%[ != = #??# | | ??????????## =[%= =*= w #??# | | ??? *!#[!## # ################### | | ???? ######## ##### #???????#] ! #/ | | ????????????# ????## ########?????# # | | ????????????# ??????##### #?????#] """ # | | ????????????# ????####??# " #?????# """ # | | ??????????T?# ???### ### #?????# !// """ # | | ????????????# ??## %# # #?????# !// # | | ????????????#???# % #?????# !// # | | ????????????# ?# * @ ###???# # | | ????????????# "# !% %;#########+##### | | ???????"""??# "%# g !% [!# #! ##### | | ???????""" gg "+ * #% ;# # | | ???????""" g# # %% gH ;# """# | | ????????????#